[Event "Kezmarok Chess Open 2022"]
[Site "Kezmarok"]
[Date "2022.09.30"]
[Round "8.6"]
[White "Walter, Ema"]
[Black "Mirowska, Oliwia"]
[Result "1/2-1/2"]
[ECO "B03"]
[WhiteElo "2062"]
[BlackElo "1856"]
[Annotator "TA"]
[PlyCount "80"]
[EventDate "2022.09.24"]
[EventType "swiss"]
[EventCountry "SVK"]
[SourceTitle "playchess.com"]
[Source "ChessBase"]
[SourceQuality "1"]
[TimeControl "40/5400+30:1800+30"]

{[%evp 12,80,31,24,13,0,12,-20,-28,-29,-37,-28,47,7,0,-8,0,0,0,-24,-26,-25,22,27,41,0,9,10,35,0,369,366,362,137,137,140,111,0,0,-167,-172,-292,-257,-256,-8,-8,-10,-210,-147,-167,-175,-164,-157,-162,-150,-147,-70,-70,-70,-97,-97,-95,-72,-116,-113,-128,-72,-72,-72,-72,-74]} 1. e4 {[%cal Be2e4,Be4e5][%mdl 32]} Nf6 2. e5 Nd5 3. d4 d6 4. c4 Nb6 5. exd6 cxd6 6. Nf3 g6 7. Be3 Bg7 {B04: Alekhine's Defence: 4 Nf3.} 8. Qd2 Bg4 {[#]} 9. Ng1 $146 ({Predecessor:} 9. Bh6 O-O 10. Bxg7 Kxg7 11. d5 Bxf3 12. Qc3+ Kg8 13. Qxf3 e6 14. Nc3 exd5 15. cxd5 {½-½ (24) Kosteniuk,A (2452)-Yermolinsky,A (2552) Connecticut 2003}) 9... Nc6 {The position is equal.} 10. h3 Bf5 11. Nc3 h5 {Against g4} ({Black should play} 11... d5 $11) 12. Nf3 (12. d5 $5 {[%cal Rd5c6]} Ne5 13. b3 $11) 12... d5 13. cxd5 Nxd5 14. Bb5 Nxe3 15. Bxc6+ bxc6 16. fxe3 Bh6 (16... c5 {feels stronger.}) 17. Qf2 $11 Qb6 18. Rd1 Rb8 19. Rd2 Qa6 20. g4 hxg4 {[%mdl 8192]} (20... Be6 $11) 21. hxg4 $18 ({Worse is} 21. Qg3 Rxb2 22. Rxb2 gxf3 $15) 21... Bxg4 22. Qg3 (22. Ne5 $18 {and the rest is easy.} Be6 23. Qf4 $1 {[%mdl 512]}) 22... Qc8 $16 23. Ne5 Bh5 24. Nxc6 {White is much more active. Pair of Knights!} Rb7 $1 $11 (24... Rxb2 $2 25. Rxb2 f6 26. Rb8 $18) 25. Ne5 (25. d5 $11) 25... Rxb2 $1 $19 26. Qf2 {[#]} (26. Nd3 $142 Rb6 27. O-O) 26... Rb1+ $3 {[%mdl 512]} 27. Nd1 f6 (27... O-O $19 {White must now prevent ...Qc3.} 28. Rxh5 gxh5) 28. Rxh5 $1 $11 {Really sharp!} gxh5 $40 {[%mdl 128] Black has some attack.} 29. Rc2 $2 (29. Qf3 $1 $11 Kf8 30. Ng6+ Kg7 31. Nxh8) 29... Qb7 {Hoping for ...Qh1+.} 30. Qg2 {Inhibits Qh1+. White threatens Qxb7 and mate.} fxe5 31. Qxb7 Rxb7 32. Rc8+ {[%cal Bc2c8,Bc8h8,Bh8h5,Bh5f5][%mdl 32]} Kf7 33. Rxh8 $17 {[%mdl 4096] Endgame KRB-KRN} Bg7 (33... Kg6 $17 {aiming for ...exd4.} 34. dxe5 h4 35. Rg8+ Bg7) 34. Rxh5 $15 exd4 35. Kd2 dxe3+ {Black is better.} 36. Kxe3 Rd7 37. Nf2 Bd4+ 38. Ke4 {[#]} Bxf2 (38... Bb6 $142 $1 39. Rh7+ Kg6) 39. Rf5+ $17 Ke6 {( -> ...Rd4+)} 40. Rxf2 Rb7 {Weighted Error Value: White=0.40/Black=0.41} 1/2-1/2

[Event "Kezmarok Chess Open 2022"]
[Site "Kezmarok"]
[Date "2022.09.30"]
[Round "8.7"]
[White "Janik, Marek Tobias"]
[Black "Rakovsky, Jakub"]
[Result "1/2-1/2"]
[ECO "C49"]
[WhiteElo "1823"]
[BlackElo "2012"]
[Annotator "TA"]
[PlyCount "34"]
[EventDate "2022.09.24"]
[EventType "swiss"]
[EventCountry "SVK"]
[SourceTitle "playchess.com"]
[Source "ChessBase"]
[SourceQuality "1"]
[TimeControl "40/5400+30:1800+30"]

{[%evp 13,34,0,9,4,12,0,0,0,0,0,0,0,20,0,22,-8,0,0,18,0,4,15,38]} 1. e4 {[%emt 0:00:13]} e5 {[%emt 0:04:31]} 2. Nf3 {[%emt 0:00:06]} Nc6 {[%emt 0:00:06]} 3. Nc3 {[%emt 0:00:05]} Nf6 {[%emt 0:01:09]} 4. Bb5 {[%emt 0:00:15]} Bb4 {[%emt 0:05:56]} 5. O-O {[%emt 0:00:47]} O-O {[%emt 0:26:39]} 6. Bxc6 {[%emt 0:04:33]} dxc6 {[%emt 0:06:34]} 7. d3 {[%emt 0:01:24]} Qe7 {[%emt 0:02:28] The position is equal. 7...Nd7 gains popularity.} 8. Ne2 {[%emt 0:02:11] C49: Four Knights: 4 Bb5 Bb4.} Nh5 {[%emt 0:13:05]} 9. Ng3 {[%emt 0:05:15] [#]} Nxg3 $146 {[%emt 0:01:06]} ({Predecessor:} 9... Nf4 10. c3 Bd6 11. d4 f6 12. Re1 Be6 13. Be3 Rad8 14. Qc2 Qf7 15. b3 Qg6 16. Bxf4 exf4 {0-1 (38) Rosito,J (2354)-Sorin,A (2490) Buenos Aires 2000}) 10. fxg3 {[%emt 0:00:12]} Bc5+ {[%emt 0:01:18]} 11. Kh1 {[%emt 0:00:09]} Bg4 {[%emt 0:04:43]} 12. h3 {[%emt 0:03:58]} Bxf3 {[%emt 0:02:52]} 13. Qxf3 {[%emt 0:00:32]} Rad8 {[%emt 0:02:25]} 14. Be3 {[%emt 0:07:15]} Bxe3 {[%emt 0:01:29]} 15. Qxe3 {[%emt 0:00:07]} c5 {[%emt 0:00:17]} 16. Rf3 {[%emt 0:01:56]} b6 {[%emt 0:01:06]} 17. Raf1 {[%emt 0:01:05]} Rd6 {[%emt 0:02:51] Not much happened in this game.  Weighted Error Value: White=0.12 (very precise) /Black=0.07 (flawless)} 1/2-1/2

[Event "Kezmarok Chess Open 2022"]
[Site "Kezmarok"]
[Date "2022.09.30"]
[Round "8.8"]
[White "Velychko, Semen"]
[Black "Sosovickova, Jana"]
[Result "0-1"]
[ECO "C55"]
[WhiteElo "1604"]
[BlackElo "2039"]
[Annotator "TA"]
[PlyCount "126"]
[EventDate "2022.09.24"]
[EventType "swiss"]
[EventCountry "SVK"]
[SourceTitle "playchess.com"]
[Source "ChessBase"]
[SourceQuality "1"]
[TimeControl "40/5400+30:1800+30"]

{[%evp 17,125,-52,-50,-39,-41,-60,-41,-60,-34,-37,-37,-21,-34,-25,-36,-35,-8,-22,-16,-56,-59,-52,-54,-61,-61,-58,-52,-73,-72,-73,-93,-111,-120,-118,-19,-20,-20,-40,-39,-44,-51,-71,0,0,0,0,0,-8,11,10,9,0,0,0,0,-170,-170,-170,-170,-170,-170,-170,-170,-170,-166,-170,-99,-316,-309,-587,-460,-460,-460,-460,-460,-29961,-29966,-29960,-29965,-29966,-4614,-29973,-29974,-29974,-29975,-29974,-29976,-29977,-453,-29973,-29974,-29977,-29978,-29978,-29979,-29979,-29980,-29980,-29981,-29979,-29976,-29985,-29986,-29992,-29990,-29990,-29991,-29998,-29999,-29999]} 1. e4 {[%emt 0:00:04][%cal Be2e4,Be4e5][%mdl 32]} e5 {[%emt 0:00:09]} 2. Nf3 {[%emt 0:00:11]} Nc6 {[%emt 0:00:04]} 3. d4 {[%emt 0:00:15]} exd4 {[%emt 0:00:17]} 4. Bc4 {[%emt 0:00:29]} Nf6 {[%emt 0:00:03]} 5. e5 {[%emt 0:00:53]} d5 {[%emt 0:00:06]} 6. Bb5 {[%emt 0:00:50]} Nd7 {[%emt 0:00:03]} 7. O-O {[%emt 0:07:18]} Be7 {[%emt 0:00:12]} 8. Bxc6 {[%emt 0:06:45]} bxc6 {[%emt 0:00:05]} 9. e6 {[%emt 0:09:01]} fxe6 {[%emt 0:03:04] White must now prevent ...e5.} 10. Nxd4 {[%emt 0:00:16] C56: Two Knights: 4 d4 exd4 5 0-0 Nxe4.} Nb8 {[%emt 0:01:39] [#] ...0-0 is the strong threat.} 11. Qe2 $146 {[%emt 0:20:43]} ({Predecessor:} 11. Qh5+ g6 12. Qe2 Bf6 13. Nxe6 Bxe6 14. Qxe6+ Qe7 15. Qc8+ Kf7 16. Qb7 Nd7 17. Qxc6 Qd6 18. Qxd6 cxd6 {½-½ (90) Safarli,E (2593)-Shankland,S (2705) Khanty-Mansiysk 2019}) 11... Qd6 {[%emt 0:35:20] Hoping for ...e5.} 12. Re1 {[%emt 0:06:20][%cal Od4f5] Black is slightly better.} O-O {[%emt 0:08:22] And now ...Bf6 would win.} (12... Bf6 $5 {[%cal Rf6d4]} 13. Nxe6 Bxe6 14. Qxe6+ Qxe6 15. Rxe6+ Kf7 $15) 13. Nxe6 {[%emt 0:01:12]} Bxe6 {[%emt 0:04:34]} 14. Qxe6+ {[%emt 0:00:08]} Qxe6 {[%emt 0:00:17]} 15. Rxe6 {[%emt 0:00:06]} Bf6 {[%emt 0:00:02]} 16. Nc3 {[%emt 0:01:39]} Kf7 {[%emt 0:03:03]} 17. Re2 {[%emt 0:00:35]} Na6 {[%emt 0:00:23]} 18. Bf4 {[%emt 0:01:18]} Rab8 {[%emt 0:00:22]} 19. Nd1 {[%emt 0:07:32]} Rfe8 {[%emt 0:12:56]} 20. Rxe8 {[%emt 0:03:01]} Rxe8 {[%emt 0:01:17][%cal Re8e1]} 21. Kf1 {[%emt 0:03:20] Prevents Re1+.} Nb4 $1 {[%emt 0:04:20]} 22. Rc1 {[%emt 0:02:27]} Nxa2 {[%emt 0:01:41] Black has more active pieces. The white rooks are badly placed.} 23. Ra1 {[%emt 0:00:21]} Nb4 {[%emt 0:00:27]} 24. Rxa7 {[%emt 0:00:35]} Nxc2 {[%emt 0:00:25][%csl Gc2][%cal Re8e1]} 25. Rxc7+ {[%emt 0:00:15] [#]} Kg6 {[%emt 0:01:29]} (25... Re7 $1 $17 26. Nc3 Nd4) 26. Ne3 $11 {[%emt 0:00:35]} Nxe3+ {[%emt 0:05:48]} 27. fxe3 {[%emt 0:00:08][%mdl 4096] Endgame KRB-KRB} Re6 {[%emt 0:01:00]} 28. b3 {[%emt 0:02:18]} Kf5 {[%emt 0:03:09]} 29. Kf2 {[%emt 0:11:53]} d4 {[%emt 0:09:19]} (29... g5 $17 30. Bg3 h5) 30. Kf3 {[%emt 0:05:36][%cal Oe3e4]} g5 {[%emt 0:02:23]} 31. e4+ $1 {[%emt 0:00:09]} Kg6 {[%emt 0:00:21]} 32. Bc1 {[%emt 0:01:41]} g4+ {[%emt 0:01:56]} 33. Kxg4 {[%emt 0:00:27]} Rxe4+ {[%emt 0:00:04]} 34. Kf3 {[%emt 0:00:09]} Re6 {[%emt 0:00:16]} 35. Rd7 {[%emt 0:01:13]} Re1 {[%emt 0:02:04]} 36. Bb2 {[%emt 0:00:59]} (36. Bf4 $11) 36... Re3+ $19 {[%emt 0:00:10]} 37. Kf2 {[%emt 0:05:51]} Rxb3 {[%emt 0:00:01]} 38. Bxd4 {[%emt 0:01:18] aiming for Rd6.} Rd3 {[%emt 0:00:17]} 39. Rd6 {[%emt 0:00:18]} Rxd4 {[%emt 0:00:23]} 40. Rxc6 {[%emt 0:00:06] KRB-KR} Rd3 {[%emt 0:00:55]} 41. h3 {[%emt 0:31:15]} Kg5 {[%emt 0:30:46]} (41... h5 $19 42. g3 Ra3) 42. Rc5+ $2 {[%emt 0:00:29] Loses the game.} (42. h4+ $17 Kg6 43. g4) 42... Kf4 {[%emt 0:00:00]} 43. g3+ $2 {[%emt 0:00:00]} (43. Rc7) 43... Ke4 {[%emt 0:00:00]} 44. Rc2 {[%emt 0:00:00]} Be5 {( -> ...Rf3+)} 45. Re2+ Kd4 {[%emt 0:00:00]} 46. Ra2 {[%emt 0:00:00]} (46. g4 $19) 46... Bxg3+ {[%emt 0:00:00]} 47. Kg2 {[%emt 0:00:00]} Bf4 {[%emt 0:00:00]} 48. Ra7 {[%emt 0:00:00]} Rg3+ {[%emt 0:00:00]} (48... Ke4 $142 49. Re7+ Be5 50. Rxh7 Rd2+ 51. Kf1 Kf3 52. Rf7+ Bf4 53. Ke1 Rd4 54. Rf8 Rd7 55. Rf5 Re7+ 56. Kd1 Rc7 57. Rxf4+ Kxf4 58. Ke2 Rd7 59. h4 Rd6 60. h5 Ke4 61. Kf2 Rh6 62. Kg3 Rxh5 63. Kg4 Rd5 64. Kg3 Ke3 65. Kg4 Rb5 66. Kg3 Rb4 67. Kg2 Rg4+ 68. Kh3 Kf3 69. Kh2 Rh4+ 70. Kg1 Rh6 71. Kf1 Rh1#) 49. Kf2 {[%emt 0:00:00]} Rxh3 {[%emt 0:00:00]} 50. Kg2 {[%emt 0:00:00]} Rg3+ {[%emt 0:00:00]} 51. Kf2 {[%emt 0:00:00] [#]} h6 $1 {[%emt 0:00:00]} 52. Ra5 {[%emt 0:00:00]} Rg5 {[%emt 0:00:00]} (52... Rc3 $142 53. Ra1 Ke4 54. Re1+ Kf5 55. Rh1 Ra3 56. Ke2 Kg4 57. Rf1 h5 58. Rg1+ Rg3 59. Ra1 h4 60. Ra8 h3 61. Rg8+ Kh5 62. Rh8+ Bh6 63. Rb8 h2 64. Rb5+ Bg5 65. Kf2 Rg1 66. Rb8 h1=Q 67. Rh8+ Bh6 68. Rxh6+ Kxh6 69. Ke3 Rg4 70. Ke2 Qh3 71. Ke1 Rg2 72. Kf1 Qh1#) 53. Ra4+ {[%emt 0:00:00]} (53. Ra6 $19 Rf5 54. Kf3 Bd6+ 55. Kg4) 53... Ke5 {[%emt 0:00:00] Black mates.} 54. Kf3 {[%emt 0:00:00]} Rg3+ {[%emt 0:00:00]} 55. Kf2 {[%emt 0:00:00]} Kf5 {[%emt 0:00:00]} 56. Ra8 {[%emt 0:00:00]} Rb3 {[%emt 0:00:00]} 57. Rf8+ {[%emt 0:00:00]} Kg4 {[%emt 0:00:00]} 58. Rg8+ {[%emt 0:00:18]} Bg5 {[%emt 0:00:00]} 59. Ra8 {[%emt 0:00:56]} Rb2+ {[%emt 0:00:00]} 60. Kg1 {[%emt 0:00:40]} Be3+ {[%emt 0:00:00]} 61. Kf1 {[%emt 0:01:15]} Kf3 {[%emt 0:00:00][%cal Rb2b1]} 62. Ra1 {[%emt 0:00:28]} Rh2 {[%emt 0:00:00][%cal Rh2h1]} 63. Ke1 {[%emt 0:00:12]} Rh1# {[%emt 0:00:00] Weighted Error Value: White=0.55/Black=0.24 (precise)} 0-1

[Event "Kezmarok Chess Open 2022"]
[Site "Kezmarok"]
[Date "2022.09.30"]
[Round "8.9"]
[White "Sekova, Olivia"]
[Black "Elias, David"]
[Result "0-1"]
[ECO "B27"]
[WhiteElo "1797"]
[BlackElo "1988"]
[Annotator "TA"]
[PlyCount "90"]
[EventDate "2022.09.24"]
[EventType "swiss"]
[EventCountry "SVK"]
[SourceTitle "playchess.com"]
[Source "ChessBase"]
[SourceQuality "1"]
[TimeControl "40/5400+30:1800+30"]

{[%evp 17,90,-4,0,0,6,0,0,-23,-8,-44,13,9,65,63,196,192,306,283,511,489,511,506,486,320,318,316,315,304,319,292,306,297,443,454,461,449,448,446,362,289,304,302,295,287,281,260,259,209,247,171,500,209,586,576,552,482,558,248,457,8,8,8,8,0,15,-18,-20,-28,-20,-5297,-5319,-7471,-6414,-5405,-5065]} 1. e4 {[%emt 0:00:07]} c5 {[%emt 0:00:01]} 2. Nf3 {[%emt 0:00:14]} g6 {[%emt 0:00:04]} 3. d4 {[%emt 0:00:18]} cxd4 {[%emt 0:00:06]} 4. Nxd4 {[%emt 0:00:05]} Bg7 {[%emt 0:00:05]} 5. Nc3 {[%emt 0:00:22]} Nc6 {[%emt 0:00:20]} 6. Be3 {[%emt 0:00:33]} Nf6 {[%emt 0:00:22]} 7. Nxc6 {[%emt 0:00:56]} bxc6 {[%emt 0:00:16]} 8. e5 {[%emt 0:00:56]} Ng8 {[%emt 0:00:29]} 9. Bd4 Qa5 {[%emt 0:00:59]} 10. f4 {[%emt 0:08:42] B34: Sicilian: Accelerated Dragon with 5 Nc3: sidelines.} Rb8 {[%emt 0:02:19]} 11. Qd2 {[%emt 0:00:57]} c5 {[%emt 0:14:18] [#]} 12. Be3 $146 {[%emt 0:20:29] The position is equal.} ({Predecessor:} 12. Bf2 Rxb2 13. Bc4 Rb8 14. Ne4 Qxd2+ 15. Kxd2 Rb4 16. Kd3 d6 17. c3 Rb6 18. exd6 exd6 {0-1 (44) Argote Heredia,V (2163)-Ramirez,H (2115) Cartagena 2019}) 12... Nh6 {[%emt 0:11:42]} 13. Ne4 {[%emt 0:09:49]} (13. Nd5 $5 {[%cal Rd2a5]} Qxd2+ 14. Bxd2 $11 (14. Kxd2 d6 $11)) 13... Qxd2+ {[%emt 0:04:18]} ({Better is} 13... Qc7 $1 $15) 14. Kxd2 $11 {[%emt 0:00:25]} Rxb2 {[%emt 0:00:10]} (14... d6 $1 $11) 15. Bxc5 $14 {[%emt 0:01:38]} a5 {[%emt 0:03:24]} ({Black should play} 15... Nf5 $14) 16. Bc4 $18 {[%emt 0:01:39] And now Rhb1 would win.} Rb7 {[%emt 0:12:50]} (16... d6 {might work better.}) 17. Bd5 {[%emt 0:10:16]} Rb8 {[%emt 0:05:11]} (17... d6) 18. Rab1 {[%emt 0:00:47]} Rxb1 {[%emt 0:00:36]} 19. Rxb1 {[%emt 0:00:05]} Nf5 {[%emt 0:04:23] [#]} 20. Bxf7+ {[%emt 0:12:23][%mdl 512]} Kxf7 {[%emt 0:02:37]} 21. Ng5+ {[%emt 0:00:08]} Kf8 {[%emt 0:09:26] Hoping for ...h6.} 22. Rb8 {[%emt 0:00:21][%cal Rb8c8]} Bxe5 {[%emt 0:02:29]} 23. fxe5 {[%emt 0:06:13]} Kg7 {[%emt 0:00:10]} 24. g4 {[%emt 0:00:49]} Nh6 {[%emt 0:04:53]} (24... d6 {is a better defense.} 25. Bb6 (25. gxf5 dxc5 26. Ne6+ Kf7 $16) 25... dxe5 26. gxf5 gxf5) 25. e6 {[%emt 0:06:58] White threatens Bd4+ and mate.} Nxg4 {[%emt 0:07:41] [#]} 26. Rxc8 $1 {[%emt 0:00:17][%mdl 576] Promotion} Rxc8 {[%emt 0:01:29]} 27. exd7 {[%emt 0:00:06][%mdl 4096] Endgame KRN-KBN} Ra8 {[%emt 0:00:41]} 28. Ne6+ {[%emt 0:00:12]} Kf6 {[%emt 0:00:15]} 29. d8=Q {[%emt 0:01:09]} Rxd8+ {[%emt 0:00:08]} 30. Nxd8 {[%emt 0:00:09] Black must now prevent h3.} Nxh2 {[%emt 0:00:15]} 31. Nc6 {[%emt 0:01:09]} a4 {[%emt 0:01:36]} 32. Nxe7 {[%emt 0:03:38]} g5 {[%emt 0:00:32]} 33. Bd6 {[%emt 0:03:56]} Nf3+ $2 {[%emt 0:01:26]} (33... Ng4 34. Nc8 Ke6) 34. Ke3 {[%emt 0:00:07]} g4 {[%emt 0:00:41]} (34... Ke6 {is a better chance.}) 35. c4 {[%emt 0:01:35][%cal Bc2c4,Bc4c5][%mdl 32]} Ke6 {[%emt 0:00:55]} 36. c5 {[%emt 0:01:15]} h5 {[%emt 0:02:00]} 37. Kf4 {[%emt 0:02:44]} (37. Nc6 $142 {Nd4+ is the strong threat.} h4 38. Kf4) 37... Nd4 $2 {[%emt 0:01:06]} (37... Nd2 38. Nf5 Kd5 39. Ne3+ Kc6) 38. Ng6 $2 {[%emt 0:04:00]} (38. Ke4 $18 Nb5 39. Nf5) 38... Nb5 $11 {[%emt 0:00:49]} 39. Nf8+ {[%emt 0:01:42]} Kd5 {[%emt 0:00:17]} 40. Be7 {[%emt 0:00:09]} a3 {[%emt 0:00:54]} 41. Nd7 {[%emt 0:31:22]} Ke6 {[%emt 0:30:23][%csl LRd7,LRe7]} 42. Bh4 $1 {[%emt 0:00:00] aiming for Nb8.} ({Avoid the trap} 42. Nf6 $2 Kxe7 43. Nxh5 Nc3 $19) 42... Kxd7 {[%emt 0:00:00]} 43. Be1 $2 {[%emt 0:00:00][%mdl 8192]} (43. Kg5 $11) 43... Kc6 $19 {[%emt 0:00:00] Black is clearly winning.} 44. Kg5 {[%emt 0:00:00]} Kxc5 {[%emt 0:00:00] ( -> ...Kc4)} 45. Kxh5 {[%emt 0:00:00] [#]} Kc4 $1 {[%emt 0:00:00] Never resign too early!  Weighted Error Value: White=0.66/Black=0.61} 0-1

[Event "Kezmarok Chess Open 2022"]
[Site "Kezmarok"]
[Date "2022.09.30"]
[Round "8.10"]
[White "Juracak, David"]
[Black "Bochnickova, Simona"]
[Result "0-1"]
[ECO "D37"]
[WhiteElo "1708"]
[BlackElo "1903"]
[Annotator "TA"]
[PlyCount "56"]
[EventDate "2022.09.24"]
[EventType "swiss"]
[EventCountry "SVK"]
[SourceTitle "playchess.com"]
[Source "ChessBase"]
[SourceQuality "1"]
[TimeControl "40/5400+30:1800+30"]

{[%evp 10,56,0,-3,26,0,35,0,54,2,0,0,0,0,33,25,36,17,29,-7,26,26,89,95,83,77,82,75,157,51,71,70,66,31,33,30,96,31,41,-378,-350,-380,-364,-29988,-29989,-29988,-1949,-1244,-1249]} 1. d4 {[%emt 0:00:08]} d5 {[%emt 0:00:51]} 2. c4 {[%emt 0:00:08]} e6 {[%emt 0:00:02]} 3. Nf3 {[%emt 0:00:11]} Nf6 {[%emt 0:00:03]} 4. Nc3 {[%emt 0:00:18]} Be7 {[%emt 0:00:04]} 5. e3 {[%emt 0:00:20]} O-O {[%emt 0:00:04]} 6. b3 {[%emt 0:00:22]} a6 {[%emt 0:00:05] D37: Queen's Gambit Declined: 5 Bf4.} 7. Bb2 {[%emt 0:00:53][%cal Bc1b2,Bb2c3,Bc3a5,Ba5e1][%mdl 32]} Nbd7 {[%emt 0:00:04][%cal Bb8d7,Bd7f6,Bf6e4][%mdl 32] [#]} 8. Rc1 $146 {[%emt 0:00:26]} ({Predecessor:} 8. Bd3 b6 9. cxd5 exd5 10. Ne5 Bb7 11. O-O c5 12. Qf3 Re8 13. Rad1 cxd4 14. exd4 {0-1 (60) Smirnov,P (2544)-Andreikin,D (2725) Chess.com INT 2020}) 8... Ne4 {[%emt 0:10:12]} (8... Bb4 9. a3 Bxc3+ 10. Rxc3 $14) (8... dxc4 $11 9. bxc4 c5) 9. cxd5 {[%emt 0:15:32]} (9. Qc2 $14) 9... Nxc3 $1 $11 {[%emt 0:00:14]} 10. Bxc3 {[%emt 0:00:03] And now dxe6 would win.} exd5 {[%emt 0:00:09]} 11. Bd3 {[%emt 0:00:04]} f5 {[%emt 0:00:28]} 12. O-O {[%emt 0:01:20]} Nf6 {[%emt 0:00:26]} 13. Qc2 {[%emt 0:05:46]} Ne4 {[%emt 0:01:42]} 14. Ne5 {[%emt 0:03:22]} Be6 {[%emt 0:06:08]} 15. Ba5 {[%emt 0:12:01]} b6 {[%emt 0:01:26]} (15... Ba3 $1 $11) 16. Nc6 $16 {[%emt 0:03:59]} Qe8 {[%emt 0:01:51]} 17. Nxe7+ {[%emt 0:00:06]} Qxe7 {[%emt 0:00:05]} 18. Be1 {[%emt 0:00:11]} c5 {[%emt 0:08:06]} (18... Bd7 $142) 19. Bxe4 {[%emt 0:01:15]} (19. f3 $16) 19... fxe4 {[%emt 0:05:21]} 20. dxc5 {[%emt 0:00:11]} Qg5 {[%emt 0:01:00] aiming for ...Bh3.} 21. Kh1 {[%emt 0:10:55]} ({Much worse is} 21. cxb6 $6 Bh3 22. g3 (22. f4 exf3 23. b7 Rae8 $17) 22... Bxf1 23. Kxf1 Qxe3 $15) (21. h4 {feels hotter.} Qg6 22. Bb4 a5 23. Ba3) 21... bxc5 {[%emt 0:01:54]} 22. Qxc5 {[%emt 0:00:59]} Rf6 {[%emt 0:09:08]} (22... Rfc8 $11 {keeps the balance.} 23. Qa3 Rxc1 24. Qxc1 d4) 23. Qd6 {[%emt 0:07:27]} (23. Qe7 $1 $16) 23... Rg6 $14 {[%emt 0:01:33][%csl Gg6][%cal Rg5g2]} 24. Qg3 {[%emt 0:00:50][%mdl 8192] [#] This costs White the game.} (24. Rg1 $14 {is the one way to stay ahead.}) 24... Qh5 $1 $19 {[%emt 0:01:00]} 25. Qd6 {[%emt 0:04:49]} Bg4 {[%emt 0:12:00]} ({Not} 25... Bh3 $2 26. Qxg6 hxg6 27. gxh3 $19) 26. Qc5 {[%emt 0:04:13] [#]} (26. Qxg6 $19 Qxg6 27. Bc3) 26... Bf3 $1 {[%emt 0:01:07][%mdl 512]} 27. Rg1 {[%emt 0:00:04] [#]} Rxg2 $1 {[%emt 0:00:31][%mdl 512]} 28. Rxg2 {[%emt 0:00:26]} Qg5 $1 {[%emt 0:00:11][%mdl 64] Pin.  Weighted Error Value: White=0.82/Black=0.37} 0-1

[Event "Kezmarok Chess Open 2022"]
[Site "Kezmarok"]
[Date "2022.09.30"]
[Round "8.11"]
[White "Fizerova, Lucie"]
[Black "Rak, Martin"]
[Result "1/2-1/2"]
[ECO "A04"]
[WhiteElo "1779"]
[BlackElo "1805"]
[Annotator "NA RC COMBH"]
[PlyCount "64"]
[EventDate "2022.09.24"]
[EventType "swiss"]
[EventCountry "SVK"]
[SourceTitle "playchess.com"]
[Source "ChessBase"]
[SourceQuality "1"]
[TimeControl "40/5400+30:1800+30"]

1. Nf3 f5 2. g3 Nf6 3. Bg2 d6 4. O-O g6 5. d3 Bg7 6. Nbd2 O-O 7. e4 Nc6 8. c3 fxe4 9. dxe4 e5 10. Qb3+ Kh8 11. Qc2 a5 12. b3 b6 13. Ba3 Nd7 14. Rad1 Nc5 15. Ne1 Ba6 16. c4 Nd4 17. Qb2 Nce6 18. Nef3 Bb7 19. Nxd4 Nxd4 20. b4 axb4 21. Bxb4 c5 22. Bc3 Ne2+ 23. Kh1 Nxc3 24. Qxc3 Rxa2 25. Ra1 Rxa1 26. Qxa1 Qc7 27. Qb2 Bc6 28. Nb1 Qb7 29. Nc3 Rb8 30. Rd1 Qc7 31. Nb5 Bxb5 32. Qxb5 Rf8 1/2-1/2

[Event "Kezmarok Chess Open 2022"]
[Site "Kezmarok"]
[Date "2022.09.30"]
[Round "8.12"]
[White "Smetana, Peter"]
[Black "Ropovik, Samuel"]
[Result "1-0"]
[ECO "A10"]
[WhiteElo "1715"]
[BlackElo "1497"]
[Annotator "NA RC COMBH"]
[PlyCount "121"]
[EventDate "2022.09.24"]
[EventType "swiss"]
[EventCountry "SVK"]
[SourceTitle "playchess.com"]
[Source "ChessBase"]
[SourceQuality "1"]
[TimeControl "40/5400+30:1800+30"]

1. c4 g6 2. Nf3 Bg7 3. g3 c5 4. Bg2 Nc6 5. O-O d6 6. d3 Bf5 7. Nc3 e5 8. a3 Nge7 9. Rb1 O-O 10. b4 Qd7 11. Be3 Nd4 12. bxc5 dxc5 13. Nh4 Rab8 14. Nxf5 Nexf5 15. Bxd4 exd4 16. Ne4 b6 17. Bh3 Rbd8 18. Bxf5 Qxf5 19. a4 Qd7 20. a5 Qc7 21. axb6 axb6 22. Rb5 f5 23. Ng5 Rfe8 24. Qc2 Qe7 25. Nf3 Qxe2 26. Qxe2 Rxe2 27. Rxb6 Ra8 28. Re1 Raa2 29. Rxe2 Rxe2 30. Rb5 Bf8 31. h4 Rc2 32. Ne1 Rd2 33. Kf1 Kf7 34. Rb6 Kg7 35. Rb7+ Kg8 36. Rc7 Bd6 37. Rc6 Bf8 38. Re6 Kf7 39. Re2 Bh6 40. Rxd2 Bxd2 41. Nf3 Bc1 42. Ne5+ Ke6 43. f4 Ba3 44. Ke2 Kf6 45. Nd7+ Ke7 46. Nb6 Ke6 47. Nd5 h6 48. Kf3 h5 49. Ke2 Kd6 50. Kd1 Bb2 51. Kc2 Ba3 52. Nf6 Bb4 53. Kd1 Ba5 54. Nh7 Ke7 55. Ng5 Bc7 56. Nf3 Kf6 57. Kc2 Ba5 58. Kb3 Ke6 59. Ka4 Bb4 60. Nxd4+ cxd4 61. Kxb4 1-0